Workbook

Sheet Cover
B3: BU mobilný LRIC model
B6: BU mobilný LRIC model je matematický model pripravený spoločnosťou PricewaterhouseCoopers Advisory, s.r.o. v rámci projektu „Aktualizácia vzostupného hospodársko-technického modulu LRIC-pure pre stanovenie ceny prepojovacích poplatkov za službu ukončenia volania v jednotlivých mobilných telefónnych sieťach z dôvodu zmien na telekomunikačnom trhu (používanie technológie LTE)“ (tzv. „LRIC – pure“ podľa odporúčania EK o regulačnom zaobchádzaní s prepojovacími poplatkami v pevných a mobilných telefónnych sieťach v EÚ zo 7. mája 2009). Slúži ako matematický model pre výpočet cien na základe dlhodobých prírastkových nákladov (vrátene modelu LRIC) pre službu ukončenia volaní vo verejných mobilných sieťach. Ide o aktualizáciu funkčného modelu, ktorý bude v súlade so zmluvou z 22.3.2016 v nasledujúcich fázach projektu prechádzať naplnením vstupmi operátorov pôsobiacich na trhu mobilných komunikácií v Slovenskej republike. Vzhľadom na uvedený postup v nasledujúcich fázach projektu môže dôjsť k jeho modifikácii smerujúcej k naplneniu modelu optimálnymi vstupmi a prípadného nasledujúceho zapracovania významných pripomienok zo strany RÚ alebo operátorov.

Sheet 7c. Radiová síť LTE (hidden)
A1: 7b. Dimenzovanie rádiovej časti siete LTE
A3: Popis
A4: Kalkulácia dimenzovania LTE rádiovej siete
A6: Vstupy z predchádzajúcich kalkulácií
B9: Busy hour prevádzka | C9: Jednotka | D9: Hodnota
B10: BHE v súčasnom roku | C10: BHE | D10: =#REF! -> 
B11: Kapacity planning max load factor - radio network | C11: % | D11: ='0. Hlavné vstupy'!$BD$75 -> 0
B12: BHE v plánovanom období | C12: BHE | D12: =D10*(1+'2. Dopyt'!#REF!*$D$15/12) -> 
B13: BHE úprava loading factor | C13: BHE | D13: =$D$12/$D$11 -> 
B14: BH prevádzka v Mbps | C14: Mbps
B15: Plánovacie obdobie | C15: # mesiacov | D15: ='4. Parametre dimenzovania siete'!$C$52 -> 0
B21: Region | C21: Celkové pokrytie - LTE (% celkovej rozlohy) | D21: Celkové pokrytie - LTE (km2)
B22: Aglomerácia | C22: ='0. Hlavné vstupy'!$AO$76 -> 0 | D22: =C22*'4. Parametre dimenzovania siete'!$D$24 -> 0
B23: Mestá | C23: ='0. Hlavné vstupy'!$AO$77 -> 0 | D23: =C23*'4. Parametre dimenzovania siete'!$D$25 -> 0
B24: Vidiek | C24: ='0. Hlavné vstupy'!$AO$78 -> 0 | D24: =C24*'4. Parametre dimenzovania siete'!$D$26 -> 0
B27: Region | C27: Node B maximálny polomer bunky | D27: Node B priemerný polomer bunky
B28: Aglomerácia | C28: ='4. Parametre dimenzovania siete'!#REF! ->  | D28: ='4. Parametre dimenzovania siete'!#REF! -> 
B29: Mestá | C29: ='4. Parametre dimenzovania siete'!#REF! ->  | D29: ='4. Parametre dimenzovania siete'!#REF! -> 
B30: Vidiek | C30: ='4. Parametre dimenzovania siete'!#REF! ->  | D30: ='4. Parametre dimenzovania siete'!#REF! -> 
B31: Dopravné koridory | C31: ='4. Parametre dimenzovania siete'!#REF! ->  | D31: ='4. Parametre dimenzovania siete'!#REF! -> 
B32: Rekreačné oblasti | C32: ='4. Parametre dimenzovania siete'!#REF! ->  | D32: ='4. Parametre dimenzovania siete'!#REF! -> 
B38: link output to 11. Anualizace

Sheet 5. Jednotkové investície & Opex
A1: 5. Investície a Opex
A3: Popis
A4: Poskytuje cenové informácie pre všetky sieťové komponenty a príslušné prevádzkové náklady
A7: 5.1 Jednotkové aktuálne ceny pre prístupové (RAN) a prepojovacie sieťové prvky
B9: Switching & Access | D9: Iné investičné výdavky
B10: Jednotka | D10: %
B11: Radio Access Sites - strecha
B12: Radio Access Sites - samostatný pylón
B13: BTS Cabinet
B14: TRX 2G
B15: BSC
B16: NodeB Cabinet
B17: NodeB Carrier
B18: NodeB Channel Kit
B19: NodeB HSPA Upgrade
B20: eNode B coverage
B21: eNode B capacity
B22: eNodeB capacity 5 MHz channel sector
B23: Digital unit
B24: Propojení RU - DU - Fibre
B25: Propojení RU - DU Add Drop Multiplexer - STM1
B26: Propojení RU - DU Add Drop Multiplexer - STM4
B27: Propojení RU - DU Add Drop Multiplexer - STM16
B28: Propojení RU - DU Add Drop Multiplexer - STM64
B29: Propojení RU - DU Add Drop Multiplexer - STM256
B30: RNC
B31: HLR / HSS
B32: MSS
B33: SGW, PGW
B34: MME
B35: Mobile voicemail platform
B36: SMS Centrum
B37: MMS Centrum
B38: Intelligent Network
B39: SGSN Platform
B40: GGSN Platform
B41: BTS - BSC
B42: Node B - RNC
B43: eNode B - MGW
B44: BSC - MGW
B45: RNC - MGW
B46: MGW - MGW
B47: Interconnection
B48: IMS
B49: PCRF
A51: 5.2 Jednotkové aktuálne ceny pre vlastnené prenosové sieťové prvky
B53: Prenos | D53: Iné investičné výdavky
B54: Jednotka | D54: %
B55: Optické vlákno
B56: Vlákno vrátane káblovodov a zemných prác - Mesto & Aglomerácia
B57: Vlákno vrátane káblovodov a zemných prác - Vidiek
B58: NGN prenosové zariadenie
B59: IP Switch
B60: IP Router
B61: SDH zariadenie
B62: Digital Cross Connect (DXC)
B63: Add Drop Multiplexer - STM1
B64: Add Drop Multiplexer - STM4
B65: Add Drop Multiplexer - STM16
B66: Add Drop Multiplexer - STM64
B67: Add Drop Multiplexer - STM256
B68: Mikrovlnné zariadenie
B69: Link 2 Mbit/s
B70: Link 8 Mbit/s
B71: Link 32 Mbit/s
B72: Link 128 Mbit/s
B73: Link STM-1
B74: Satelitné zariadenie
B75: Link 2 Mbit/s
B76: Link 8 Mbit/s
B77: Link 32 Mbit/s
B78: Link 128 Mbit/s
B79: …
A82: 5.3 Jednotkové aktuálne ceny za prenajatú infraštruktúru
B84: Prenajaté lokácie a pozemky | C84: EUR/mesiac | D84: UM | E84: Množstvo | F84: EUR / rok
B85: Prenajaté stožiare | D85: Lokácia / mesiac | F85: =C85*12 -> 0
B86: Prenajaté strechy | D86: Lokácia / mesiac | F86: =C86*12 -> 0
B87: Priemerná cena prenájmu lokácie | F87: =SUMPRODUCT(F85:F86,E85:E86)/SUM(E85:E86) -> 
B89: Prenajaté prenosové spoje | C89: Kapacita spoja | D89: Vzdialenosť (km) | E89: UM | F89: EUR / mesiac / UM | G89: EUR / Rok / UM
C90: Kábel | E90: Km | G90: =F90*12 -> 0
C91: STM1 | E91: Link STM-1 | G91: =F91*12 -> 0
C92: 4 x E1 | E92: Link STM-4 | G92: =F92*12 -> 0
C93: 2 x E1 | E93: Link STM-16 | G93: =F93*12 -> 0
C94: 1 x E1 | E94: Link 2 Mbit/s | G94: =F94*12 -> 0
E95: Link 8 Mbit/s | G95: =F95*12 -> 0
E96: Link 32 Mbit/s | G96: 0
E97: Link 128 Mbit/s | G97: 0

Sheet 4. Parametre dimenzovania siete
A1: 4. Parametre dimenzovania siete
A3: Popis
A4: Poskytuje základné technické plánovacie parametre a súčasnú kapacitu siete
A5: V prípade, že nie je uvedené inak, informácie nižšie vychádzajú zo stavu v roku 0
A7: 4.1 Hlavné kritériá
B10: Proportion of Node B HSPA enabled | C10: %
B11: UMTS Radio Channel voice rate | C11: mbps
B12: Max number of channels per carrier | C12: # Channels
B13: Počet Mbps na sektor eNodeB coverage 10 MHz | C13: mbps | E13: =AVERAGE(G13:I13) -> 
B14: Capacity allowance for soft handover | C14: %
B15: Max number of channels per carrier adjusted for soft handover | C15: # Channels
B16: Min number of channels per Node-B | C16: # Channels
B17: Počet Mbps na sektor eNodeB capacity (ekvivalent 5 MHz šírky kanálu) | C17: mbps | E17: =AVERAGE(G17:I17) -> 
B18: Channels per Channel Kit | C18: # Channels
B19: Channel Element Utilisation factor
A21: 4.3 Pokrytie
B23: Región | C23: Populácia rok X | D23: Celková plocha územia (km2)
B24: Aglomerácie | C24: 1166614 | D24: 1180
B25: Mestá | C25: 1949301 | D25: 7404
B26: Vidiek | C26: 2310337 | D26: 40452
B27: Územie celkom | C27: =SUM(C24:C26) -> 5426252 | D27: =SUM(D24:D26) -> 49036
A30: 4.6 Mapovanie prevádzky na Core Nodes
B31: Definícia Core Node: lokácia MGW / SGW, PGW alebo MSS/MME
C33: Core Node Uzol (1 ak je geotyp obsluhovaný len jedným CN uzlom ; 0.5 ak je geotyp obsluhovaný 2 uzlami v rovnakom pomere atd.)
B34: Región | C34: Bratislava 1 | D34: Bratislava 2 | E34: Košice 1 | F34: Košice 2 | G34: Trnava | H34: Nitra | I34: Trenčín | J34: Žilina | K34: Banská Bystrica | L34: Prešov | N34: Kontrola (vždy 1)
B35: Geotyp Aglomerácie | N35: =SUM(C35:M35) -> 0
B36: Geotyp Mestá | N36: =SUM(C36:L36) -> 0
B37: Geotyp Vidiek | N37: 0
B38: Počet oblastí napojených na Core Node | C38: =SUM(C35:C37) -> 0 | D38: =SUM(D35:D37) -> 0 | E38: 0 | F38: 0 | G38: 0 | H38: 0 | I38: 0 | J38: 0 | K38: 0 | L38: 0
B39: Distribúcia prevádzky na Core Node Uzol | C39: =SUMPRODUCT(#REF!,C$35:C$37) ->  | D39: =SUMPRODUCT(#REF!,D$35:D$37) ->  | E39: =SUMPRODUCT(#REF!,E$35:E$37) ->  | F39: =SUMPRODUCT(#REF!,F$35:F$37) ->  | G39: =SUMPRODUCT(#REF!,G$35:G$37) ->  | H39: =SUMPRODUCT(#REF!,H$35:H$37) ->  | I39: =SUMPRODUCT(#REF!,I$35:I$37) ->  | J39: =SUMPRODUCT(#REF!,J$35:J$37) ->  | K39: =SUMPRODUCT(#REF!,K$35:K$37) ->  | L39: =SUMPRODUCT(#REF!,L$35:L$37) ->  | N39: =SUM(C39:L39) -> 
A42: 4.8 BTS / NodeB zariadenie
D43: 3
C44: Počet BTS kabinetov | G44: Počet TRX | K44: NodeB | P44: Kabinety
B45: Zariadenie rádiového prístupu | C45: GSM 900 | D45: GSM 1800 | E45: GSM Dual | F45: Total | G45: GSM 900 | H45: GSM 1800 | I45: GSM Dual | J45: Total | K45: NodeB | L45: NodeB components | P45: GSM 900 | Q45: GSM 1800 | R45: GSM Dual | S45: Celkom
C46: # | D46: # | E46: # | F46: # | G46: # TRX | H46: # TRX | I46: # TRX | J46: # TRX | K46: # | L46: # Carrier | M46: # Channel Kit | N46: # HSDPA Upgrade | P46: # | Q46: # | R46: # | S46: #
B47: Aglomerácie | P47: ='0. Hlavné vstupy'!BB123 -> 0 | Q47: ='0. Hlavné vstupy'!BC123 -> 0 | R47: ='0. Hlavné vstupy'!BD123 -> 0 | S47: =SUM(P47:R47) -> 0
B48: Mestá | P48: ='0. Hlavné vstupy'!BB124 -> 0 | Q48: ='0. Hlavné vstupy'!BC124 -> 0 | R48: ='0. Hlavné vstupy'!BD124 -> 0 | S48: 0
B49: Vidiek | P49: ='0. Hlavné vstupy'!BB125 -> 0 | Q49: ='0. Hlavné vstupy'!BC125 -> 0 | R49: ='0. Hlavné vstupy'!BD125 -> 0 | S49: 0
B50: Celkom územie | C50: =SUM(C47:C49) -> 0 | D50: 0 | E50: 0 | F50: 0 | G50: 0 | H50: 0 | I50: 0 | J50: 0 | K50: 0 | L50: 0 | P50: ='0. Hlavné vstupy'!BB126 -> 0 | Q50: ='0. Hlavné vstupy'!BC126 -> 0 | R50: ='0. Hlavné vstupy'!BD126 -> 0 | S50: 0
B51: Kapacita: Maximálny počet TRX/Carrier na BTS/NodeB
B52: Plánovacie obdobie (# mesiacov)
B55: Využitie TRX v HPH (%) | C55: GSM 900 | D55: GSM 1800 | E55: GSM Dual | F55: Celkom územie
B56: Aglomerácie
B57: Mestá
B58: Vidiek
A61: 4.9 BTS / NodeB sektorizácia
B63: Sektorizácia | C63: GSM 900 | F63: GSM 1800 | I63: GSM Dual | L63: NodeB | O63: eNode B
C64: 1 sektor (%) | D64: 2 sektory (%) | E64: 3+ sektory (%) | F64: 1 sektor (%) | G64: 2 sektory (%) | H64: 3+ sektory (%) | I64: 1 sektor (%) | J64: 2 sektory (%) | K64: 3+ sektory (%) | L64: 1 sektor (%) | M64: 2 sektory (%) | N64: 3+ sektory (%) | O64: 1 sektor (%) | P64: 2 sektory (%) | Q64: 3+ sektory (%)
B65: Aglomerácie
B66: Mestá
B67: Vidiek
B68: Celkom územie | C68: =SUM(C65:C67) -> 0 | D68: 0 | E68: 0 | F68: 0 | G68: 0 | H68: 0 | I68: 0 | J68: 0 | K68: 0 | L68: 0 | M68: 0 | N68: 0 | O68: 0 | P68: 0 | Q68: 0
A71: 4.10 BSC / RNC zariadenie
B73: BSC | C73: Maximálna kapacita | E73: Skutočná kapacita | G73: Plánovacie obdobie
C74: Max # TRXs (citlivosť prrvádzky) | D74: Max # BTS na BSC (citlivosť pokrytia) | E74: Skutočný # TRXs (citlivosť prevádzky) | F74: Skutočný # of BTS na BSC (citlivosť pokrytia) | G74: #mesiacov | H74: 3
B75: Maximálna efektívna kapacita
B77: RNC/DU | C77: Max dátová prevádzka na RNC (Mbps) | D77: Plánovacie obdobie | E77: Max datová prevádzka na DU (Mbps) | F77: Max počet RU na DU | G77: Plánovacie obdobie (LTE)
B78: Maximálna efektívna kapacita | C78: ='0. Hlavné vstupy'!BB133 -> 0
A80: 4.11 MSS zariadenia
B82: MSS/MME | C82: Maximálna kapacita | G82: Skutočná kapacita | I82: Plánovacie obdobie
C83: Max # of užívateľov | D83: Max # of SCC | E83: Max. # BHE | F83: Max. # of BH call attempts | G83: Actual # SCC | H83: Actual # BHE | I83: #mesiacov
B84: Max / Skutočnosť | C84: ='0. Hlavné vstupy'!BB135 -> 0 | D84: ='0. Hlavné vstupy'!BB136 -> 0 | E84: ='0. Hlavné vstupy'!BB137 -> 0 | F84: ='0. Hlavné vstupy'!BB139 -> 0
E85: Max. # Mbps | H85: Max. # Mbps
E86: ='0. Hlavné vstupy'!BB143 -> 0
A87: 4.12 PGW, SGW zariadenie
B89: Media gateways | C89: Maximálna kapacita | E89: Skutočná kapacita | G89: Plánovacie obdobie
C90: Maximálny # SCC | D90: Maximálny # BHE | E90: Aktuálny počet # SCC | F90: Act # of BHE | G90: #mesiacov
B91: Max / Skutočnosť | C91: ='0. Hlavné vstupy'!BB141 -> 0 | D91: ='0. Hlavné vstupy'!BB142 -> 0
D92: Maximálne # Mbps | F92: Act # of Mbps
D93: ='0. Hlavné vstupy'!BB143 -> 0
A95: 4.13 Ostatné zariadenia core platforms
B97: Ostatné Switching & Access zariadenia | C97: Skutočné množstvo(#) (bez zálohování a nevyužitých) | D97: Minimálny počet platforiem (#) | E97: Kapacitné jednotky | F97: Celková kapacita (v kap. jednotkách) | G97: Plánovacie obdobie (mesiace)
B98: Home Location Register (HLR) / HSS | E98: Max # zákazníkov
E99: Max # kapacita serveru
B100: MME | E100: Max # zákazníkov
B101: Voicemail platform | E101: Max # zákazníkov voicemail
B102: SMSC platform | E102: Max # SMS v BH
B103: MMSC platform | E103: Max # správ za sekundu
B104: Mobile IN | E104: Max # užívateľov
B105: SGSN Platform | E105: Max # zákazníkov s dátovými službami
B106: GGSN Platform | E106: Max # zákazníkov s dátovými službami
B107: IMS | E107: Max # zákazníkov
B108: PCRF | E108: Max # zákazníkov
A112: 4.14 Mapovanie Core platforiem na Core Node uzly
B114: Mapovanie Core platforms na Core Nodes | C114: Bratislava 1 | D114: Bratislava 2 | E114: Košice 1 | F114: Košice 2 | G114: Trnava | H114: Nitra | I114: Trenčín | J114: Žilina | K114: Banská Bystrica | L114: Prešov | M114: Celkom
B115: Network Center | M115: =SUM(C115:L115) -> 0
B116: Switch locations | M116: =SUM(C116:L116) -> 0
B117: Home Location Register (HLR) | M117: 0
B118: MME | M118: 0
B119: Voicemail platform | M119: 0
B120: SMSC platform | M120: 0
B121: MMSC platform | M121: 0
B122: Mobile IN | M122: 0
B123: SGSN Platform | M123: 0
B124: GGSN Platform | M124: 0
B125: Point Of Interconnect | M125: 0
B126: IMS | M126: 0
B127: PCRF | M127: 0
A130: Zariadenia chrbticovej siete
A134: 4.15 Prenos
A136: 4.16.1 IP (NGN) zariadenie
C138: Maximálna kapacita | E138: Skutočná kapacita
B139: IP switche (access) | C139: Kapacita (Gbps) | D139: Počet kariet | E139: Použitá kapacita (Gbps) | F139: Karty | G139: Inštalované porty
B140: Maximálna kapacita
B142: IP routery | C142: Kapacita (Gbps) | D142: Počet kariet | E142: Kapacita (Gbps) | F142: Počet kariet | G142: Počet portov
B143: Maximálna kapacita
A146: 4.16.2 Prenosové zariadenie
B149: Kábel | C149: Km | D149: BTS/NodeB - BSC/RNC | E149: BSC/RNC - MGW | F149: Chrbticové spoje
B150: Prenajaté spoje % ako percento káblových spojov | C150: 0
A153: 4.16.3 Priemerné mikrovlnné skoky a káblová vzdialenosť
B156: BSC/RNC - MGW priemerný skok / káblová vzdialenosť | C156: Core Node | D156: Priemerné mikro skoky na BSC/RNC - MGW spoj | E156: Priemerná vzdialenosť BSC/RNC - MGW spoje
B157: BSC/RNC - MGW priemerný skok / káblová vzdialenosť do Core Node
C158: =TRANSPOSE(C114:L114) -> Bratislava 1 | F158: =IF(D158=0,0,E158/D158) -> 0 | I158: =IF(G158=0,0,H158/G158) -> 0
C159: Bratislava 2 | F159: 0 | I159: =IF(G159=0,0,H159/G159) -> 0
C160: Košice 1 | F160: 0 | I160: =IF(G160=0,0,H160/G160) -> 0
C161: Košice 2 | F161: 0 | I161: =IF(G161=0,0,H161/G161) -> 0
C162: Trnava | F162: 0
C163: Nitra | F163: 0
C164: Trenčín | F164: 0
C165: Žilina | F165: 0
C166: Banská Bystrica | F166: 0
C167: Prešov | F167: 0 | I167: =IF(G167=0,0,H167/G167) -> 0
B171: Káblová vzdialenosť mezi Core Nodes a Network Centre (km) | C171: Bratislava 1 | D171: Bratislava 2 | E171: Košice 1 | F171: Košice 2 | G171: Trnava | H171: Nitra | I171: Trenčín | J171: Žilina | K171: Banská Bystrica | L171: Prešov
B172: Bratislava 1 | C172: x
B173: Bratislava 2 | D173: x
B174: Košice 1 | E174: x
B175: Košice 2 | F175: x
B176: Trnava | G176: x
B177: Nitra | H177: x
B178: Trenčín | I178: x
B179: Žilina | J179: x
B180: Banská Bystrica | K180: x
B181: Prešov | L181: x
B182: Celkom | C182: =SUM(C172:C181) -> 0 | D182: =SUM(D172:D181) -> 0 | E182: 0 | F182: 0 | G182: 0 | H182: 0 | I182: 0 | J182: 0 | K182: 0 | L182: 0
A184: 4.16.4 Prenos podľa média
B185: GSM UMTS | H185: LTE
B186: BTS/NodeB lokácie - BSC/RNC | C186: % BTS/NodeB spojov do BSC/RNC | F186: >>>>>>>>>>>>>>>>>>>>>>>>>>>>>>> | H186: Médium prenosového prístupu | I186: Jednotka | J186: Aglomerácia | K186: Mestá | L186: Vidiek
B187: BTS/NodeB spoje do BSC/RNC | C187: Aglomerácie | D187: Mestá | E187: Vidiek | H187: Kábel | I187: %
B188: Mikrovlnné | H188: Umiestnenie RU spolu s DU | I188: %
B189: Káblové
B190: Prenajatá kapacita | H190: Priemer skokov a vzdialeností | I190: Jednotka | J190: Aglomerácia | K190: Mestá | L190: Vidiek
B191: Kolokácia s BSC/RNC | H191: Priemerná káblová vzdialenosť RU - DU | I191: km | J191: ='0. Hlavné vstupy'!BE148 -> 0 | K191: ='0. Hlavné vstupy'!BE149 -> 0 | L191: ='0. Hlavné vstupy'!BE150 -> 0
B193: BSC/RNC - MGW | C193: % BSC/RNS spojov do MGW Core Node uzla:
B194: BSC/RNC spoje do Core Node | C194: Bratislava 1 | D194: Bratislava 2 | E194: Košice 1 | F194: Košice 2 | G194: Trnava | H194: Nitra | I194: Trenčín | J194: Žilina | K194: Banská Bystrica | L194: Prešov
B195: Mikrovlnné
B196: Káblové
B197: Prenajatá kapacita
B198: Kolokácia s MGW
B200: Chrbticové spoje | C200: % chrbticové spoje medzi Core Node a Network Centre:
B201: Z Core Node | C201: Bratislava 1 | D201: Bratislava 2 | E201: Košice 1 | F201: Košice 2 | G201: Trnava | H201: Nitra | I201: Trenčín | J201: Žilina | K201: Banská Bystrica | L201: Prešov
B202: Do Network Centre
B203: Kábel
B204: Prenajatá kapacita
B205: Kolokácie s inými MGW
A208: 4.17 Kapacita spojov (prevodník)
B210: Dáta pre kapacitu spoja | C210: Meno | D210: Dátová rýchlosť (Mbit/s) | E210: Počet E1s | F210: Okruhy celkom | G210: Hlasové okruhy | H210: Signalizácia | I210: Erlang
B211: Link 2 Mbit/s | C211: E1 | D211: 2.048 | E211: 1 | F211: =2048/64 -> 32 | G211: 30 | H211: 2 | I211: 21.932
B212: Link 8 Mbit/s | C212: E2 | D212: 8.448 | E212: 4 | F212: =4*2048/64 -> 128 | G212: =4*G211 -> 120 | H212: =4*H211 -> 8 | I212: 107.4
B213: Link 32 Mbit/s | C213: E3 | D213: 34.368 | E213: 16 | F213: =16*2048/64 -> 512 | G213: =4*G212 -> 480 | H213: =4*H212 -> 32 | I213: 466.316
B214: Link 128 Mbit/s | C214: E4 | D214: 139.264 | E214: 64 | F214: 2048 | G214: =G213*4 -> 1920 | H214: =H213*4 -> 128 | I214: 1926.1928
B215: Link STM-1 | C215: STM-1 | D215: 155.52 | E215: =7*3*3 -> 63 | G215: =G211*7*3*3 -> 1890 | I215: 1895.7251
B216: Link STM-4 | C216: STM-4 | D216: 622.08 | E216: =E215*4 -> 252 | G216: =G215*4 -> 7560 | I216: 7672.773
B217: Link STM-16 | C217: STM-16 | D217: 2488.32 | E217: =E216*4 -> 1008 | G217: =G216*4 -> 30240 | I217: 30810.313
B218: Link STM-64 | C218: STM-64 | D218: 9953.28 | E218: =E217*4 -> 4032 | G218: =+G217*4 -> 120960 | I218: 123379.5
B219: Link STM-256 | C219: STM-256 | D219: 39813.12 | E219: =E218*4 -> 16128 | G219: =+G218*4 -> 483840
A221: 4.18 Erlang prevodník (stále dáta)
B223: Number of voice channels (Time slots) - Circuits | C223: Number of TRXs | D223: Erlang Traffic for a given blocking probability (Erlang B table)
D224: 0.001 | E224: 0.01 | F224: 0.02 | G224: 0.05
D225: Erlang_col1 | E225: Erlang_col2 | F225: Erlang_col3 | G225: Erlang_col4
B226: 0 | C226: 0 | D226: 0 | E226: 0 | F226: 0 | G226: 0
B227: 1 | C227: 0.142857 | D227: 0.001 | E227: 0.0101 | F227: 0.02041 | G227: 0.05263
B228: 2 | C228: 0.285714 | D228: 0.04576 | E228: 0.15259 | F228: 0.22347 | G228: 0.38132
B229: 3 | C229: 0.428571 | D229: 0.19384 | E229: 0.45549 | F229: 0.60221 | G229: 0.8994
B230: 4 | C230: 0.571429 | D230: 0.43927 | E230: 0.86942 | F230: 1.0923 | G230: 1.5246
B231: 5 | C231: 0.714286 | D231: 0.76212 | E231: 1.3608 | F231: 1.6571 | G231: 2.2185
B232: 6 | C232: 0.857143 | D232: 1.1459 | E232: 1.909 | F232: 2.2759 | G232: 2.9603
B233: 7 | C233: 1 | D233: 1.5786 | E233: 2.5009 | F233: 2.9354 | G233: 3.7378
B234: 8 | C234: 1.125 | D234: 2.0513 | E234: 3.1276 | F234: 3.6271 | G234: 4.543
B235: 9 | C235: 1.25 | D235: 2.5575 | E235: 3.7825 | F235: 4.3447 | G235: 5.3702
B236: 10 | C236: 1.375 | D236: 3.092 | E236: 4.4612 | F236: 5.084 | G236: 6.2157
B237: 11 | C237: 1.5 | D237: 3.6511 | E237: 5.1599 | F237: 5.8415 | G237: 7.0764
B238: 12 | C238: 1.625 | D238: 4.2314 | E238: 5.876 | F238: 6.6147 | G238: 7.951
B239: 13 | C239: 1.75 | D239: 4.8306 | E239: 6.6072 | F239: 7.4015 | G239: 8.8349
B240: 14 | C240: 1.875 | D240: 5.4464 | E240: 7.3517 | F240: 8.2003 | G240: 9.7295
B241: 15 | C241: 2 | D241: 6.0772 | E241: 8.108 | F241: 9.0096 | G241: 10.633
B242: 16 | C242: 2.142857 | D242: 6.7215 | E242: 8.875 | F242: 9.8284 | G242: 11.544
B243: 17 | C243: 2.285714 | D243: 7.3781 | E243: 9.6516 | F243: 10.656 | G243: 12.461
B244: 18 | C244: 2.428571 | D244: 8.0459 | E244: 10.437 | F244: 11.491 | G244: 13.385
B245: 19 | C245: 2.571429 | D245: 8.7239 | E245: 11.23 | F245: 12.333 | G245: 14.315
B246: 20 | C246: 2.714286 | D246: 9.4115 | E246: 12.031 | F246: 13.182 | G246: 15.249
B247: 21 | C247: 2.857143 | D247: 10.108 | E247: 12.838 | F247: 14.036 | G247: 16.189
B248: 22 | C248: 3 | D248: 10.812 | E248: 13.651 | F248: 14.896 | G248: 17.132
B249: 23 | C249: 3.125 | D249: 11.524 | E249: 14.47 | F249: 15.761 | G249: 18.08
B250: 24 | C250: 3.25 | D250: 12.243 | E250: 15.295 | F250: 16.631 | G250: 19.031
B251: 25 | C251: 3.375 | D251: 12.969 | E251: 16.125 | F251: 17.505 | G251: 19.985
B252: 26 | C252: 3.5 | D252: 13.701 | E252: 16.959 | F252: 18.383 | G252: 20.943
B253: 27 | C253: 3.625 | D253: 14.439 | E253: 17.797 | F253: 19.265 | G253: 21.904
B254: 28 | C254: 3.75 | D254: 15.182 | E254: 18.64 | F254: 20.15 | G254: 22.867
B255: 29 | C255: 3.875 | D255: 15.93 | E255: 19.487 | F255: 21.039 | G255: 23.833
B256: 30 | C256: 4 | D256: 16.684 | E256: 20.337 | F256: 21.932 | G256: 24.802
... 2520 more rows

Sheet 3. Smerovacie faktory
A1: 3. Smerovacie faktory služieb
A3: Popis
A4: Poskytuje štatistiky smerovania služieb po jednotlivých sieťových prvkoch
C6: Rádiový prístup | I6: Chrbticová sieť | L6: Prenos | T6: Platforma
B7: Technológie | D7: 2G | F7: 3G | H7: LTE
B8: NE / Služba | C8: Access Sites | D8: BTS | E8: BSC | F8: Node B | G8: RNC | H8: eNode B (RU a DU) | I8: HLR/HSS | J8: MSS / MME | K8: MGW - SGW,PGW | L8: BTS - BSC | M8: Node B - RNC | N8: eNodeB RU - DU | O8: BSC - MGW | P8: RNC - MGW | Q8: DU - SGW, PGW | R8: MGW - MGW / SGW, PGW - SGW, PGW | S8: SGW, PGW - SGW, PGW | T8: Mobile voicemail platform | U8: SMSC Platform | V8: MMSC Platform | W8: Intelligent Network | X8: SGSN Platform | Y8: GGSN Platform | Z8: Interconnection | AA8: IMS | AB8: PCRF
B9: Odchádzajúce - hovory v sieti (on-net) | C9: 2 | D9: 2 | E9: 2 | F9: 2 | G9: 2 | H9: 2 | I9: 1 | J9: 1.5 | K9: 1.5 | L9: 2 | M9: 2 | N9: 2 | O9: 2 | P9: 2 | Q9: 2 | R9: 0.5 | S9: 0.5 | T9: 0 | U9: 0 | V9: 0 | W9: 1 | X9: 0 | Y9: 0 | Z9: 0 | AA9: 1 | AB9: 1
B10: Odchádzajúce - hovory do sietí iných mobilných operátorov | C10: 1 | D10: 1 | E10: 1 | F10: 1 | G10: 1 | H10: 1 | I10: 1 | J10: 1.5 | K10: 1.5 | L10: 1 | M10: 1 | N10: 1 | O10: 1 | P10: 1 | Q10: 1 | R10: 0.5 | S10: 0.5 | T10: 0 | U10: 0 | V10: 0 | W10: 1 | X10: 0 | Y10: 0 | Z10: 1 | AA10: 1 | AB10: 1
B11: Odchádzajúce - hovory do pevnej siete | C11: 1 | D11: 1 | E11: 1 | F11: 1 | G11: 1 | H11: 1 | I11: 1 | J11: 1.5 | K11: 1.5 | L11: 1 | M11: 1 | N11: 1 | O11: 1 | P11: 1 | Q11: 1 | R11: 0.5 | S11: 0.5 | T11: 0 | U11: 0 | V11: 0 | W11: 1 | X11: 0 | Y11: 0 | Z11: 1 | AA11: 1 | AB11: 1
B12: Odchádzajúce - hovory do zahraničia | C12: 1 | D12: 1 | E12: 1 | F12: 1 | G12: 1 | H12: 1 | I12: 1 | J12: 1.5 | K12: 1.5 | L12: 1 | M12: 1 | N12: 1 | O12: 1 | P12: 1 | Q12: 1 | R12: 0.5 | S12: 0.5 | T12: 0 | U12: 0 | V12: 0 | W12: 1 | X12: 0 | Y12: 0 | Z12: 1 | AA12: 1 | AB12: 1
B13: Odchádzajúce - hovory na tiesňové čísla | C13: 1 | D13: 1 | E13: 1 | F13: 1 | G13: 1 | H13: 1 | I13: 1 | J13: 1.5 | K13: 1.5 | L13: 1 | M13: 1 | N13: 1 | O13: 1 | P13: 1 | Q13: 1 | R13: 0.5 | S13: 0.5 | T13: 0 | U13: 0 | V13: 0 | W13: 1 | X13: 0 | Y13: 0 | Z13: 1 | AA13: 1 | AB13: 1
B14: Odchádzajúce - hovory do hlasovej schránky | C14: 1 | D14: 1 | E14: 1 | F14: 1 | G14: 1 | H14: 1 | I14: 1 | J14: 1.5 | K14: 1.5 | L14: 1 | M14: 1 | N14: 1 | O14: 1 | P14: 1 | Q14: 1 | R14: 0.5 | S14: 0.5 | T14: 1 | U14: 0 | V14: 0 | W14: 1 | X14: 0 | Y14: 0 | Z14: 0 | AA14: 1 | AB14: 1
B15: Odchádzajúce - hovory na bezplatné čísla | C15: 1 | D15: 1 | E15: 1 | F15: 1 | G15: 1 | H15: 1 | I15: 1 | J15: 1.5 | K15: 1.5 | L15: 1 | M15: 1 | N15: 1 | O15: 1 | P15: 1 | Q15: 1 | R15: 0.5 | S15: 0.5 | T15: 0 | U15: 0 | V15: 0 | W15: 1 | X15: 0 | Y15: 0 | Z15: 1 | AA15: 1 | AB15: 1
B16: Odchádzajúce - hovory na čísla Premium | C16: 1 | D16: 1 | E16: 1 | F16: 1 | G16: 1 | H16: 1 | I16: 1 | J16: 1.5 | K16: 1.5 | L16: 1 | M16: 1 | N16: 1 | O16: 1 | P16: 1 | Q16: 1 | R16: 0.5 | S16: 0.5 | T16: 0 | U16: 0 | V16: 0 | W16: 1 | X16: 0 | Y16: 0 | Z16: 1 | AA16: 1 | AB16: 1
B17: Odchádzajúce - prichádzajúci roaming | C17: 1 | D17: 1 | E17: 1 | F17: 1 | G17: 1 | H17: 1 | I17: 1 | J17: 1.5 | K17: 1.5 | L17: 1 | M17: 1 | N17: 1 | O17: 1 | P17: 1 | Q17: 1 | R17: 0.5 | S17: 0.5 | T17: 0 | U17: 0 | V17: 0 | W17: 1 | X17: 0 | Y17: 0 | Z17: 1 | AA17: 1 | AB17: 1
B18: Prichádzajúce - hovory od iných mobilných operátorov | C18: 1 | D18: 1 | E18: 1 | F18: 1 | G18: 1 | H18: 1 | I18: 1 | J18: 1.5 | K18: 1.5 | L18: 1 | M18: 1 | N18: 1 | O18: 1 | P18: 1 | Q18: 1 | R18: 0.5 | S18: 0.5 | T18: 0 | U18: 0 | V18: 0 | W18: 1 | X18: 0 | Y18: 0 | Z18: 1 | AA18: 1 | AB18: 1
B19: Prichádzajúce - hovory z pevnej siete | C19: 1 | D19: 1 | E19: 1 | F19: 1 | G19: 1 | H19: 1 | I19: 1 | J19: 1.5 | K19: 1.5 | L19: 1 | M19: 1 | N19: 1 | O19: 1 | P19: 1 | Q19: 1 | R19: 0.5 | S19: 0.5 | T19: 0 | U19: 0 | V19: 0 | W19: 1 | X19: 0 | Y19: 0 | Z19: 1 | AA19: 1 | AB19: 1
B20: Prichádzajúce - hovory zo zahraničia | C20: 1 | D20: 1 | E20: 1 | F20: 1 | G20: 1 | H20: 1 | I20: 1 | J20: 1.5 | K20: 1.5 | L20: 1 | M20: 1 | N20: 1 | O20: 1 | P20: 1 | Q20: 1 | R20: 0.5 | S20: 0.5 | T20: 0 | U20: 0 | V20: 0 | W20: 1 | X20: 0 | Y20: 0 | Z20: 1 | AA20: 1 | AB20: 1
B21: Prichádzajúce - prichádzajúci roaming | C21: 1 | D21: 1 | E21: 1 | F21: 1 | G21: 1 | H21: 1 | I21: 1 | J21: 1.5 | K21: 1.5 | L21: 1 | M21: 1 | N21: 1 | O21: 1 | P21: 1 | Q21: 1 | R21: 0.5 | S21: 0.5 | T21: 0 | U21: 0 | V21: 0 | W21: 1 | X21: 0 | Y21: 0 | Z21: 1 | AA21: 1 | AB21: 1
B22: Odchádzajúce - SMS v rámci siete | C22: 2 | D22: 2 | E22: 2 | F22: 2 | G22: 2 | H22: 2 | I22: 1 | J22: 1.5 | K22: 1.5 | L22: 2 | M22: 2 | N22: 2 | O22: 2 | P22: 2 | Q22: 2 | R22: 0.5 | S22: 0.5 | T22: 0 | U22: 1 | V22: 0 | W22: 1 | X22: 0 | Y22: 0 | Z22: 0 | AA22: 0 | AB22: 1
B23: Odchádzajúce - SMS do sietí iných mobilných operátorov | C23: 1 | D23: 1 | E23: 1 | F23: 1 | G23: 1 | H23: 1 | I23: 1 | J23: 1 | K23: 0 | L23: 1 | M23: 1 | N23: 1 | O23: 1 | P23: 1 | Q23: 1 | R23: 0 | S23: 0 | T23: 0 | U23: 1 | V23: 0 | W23: 1 | X23: 0 | Y23: 0 | Z23: 1 | AA23: 0 | AB23: 1
B24: Odchádzajúce - SMS do zahraničia | C24: 1 | D24: 1 | E24: 1 | F24: 1 | G24: 1 | H24: 1 | I24: 1 | J24: 1 | K24: 0 | L24: 1 | M24: 1 | N24: 1 | O24: 1 | P24: 1 | Q24: 1 | R24: 0 | S24: 0 | T24: 0 | U24: 1 | V24: 0 | W24: 1 | X24: 0 | Y24: 0 | Z24: 1 | AA24: 0 | AB24: 1
B25: Prichádzajúce - SMS z iných sietí mobilných operátorov | C25: 1 | D25: 1 | E25: 1 | F25: 1 | G25: 1 | H25: 1 | I25: 1 | J25: 1 | K25: 0 | L25: 1 | M25: 1 | N25: 1 | O25: 1 | P25: 1 | Q25: 1 | R25: 0 | S25: 0 | T25: 0 | U25: 1 | V25: 0 | W25: 0 | X25: 0 | Y25: 0 | Z25: 1 | AA25: 0 | AB25: 1
B26: Prichádzajúce - SMS zo zahraničia | C26: 1 | D26: 1 | E26: 1 | F26: 1 | G26: 1 | H26: 1 | I26: 1 | J26: 1 | K26: 0 | L26: 1 | M26: 1 | N26: 1 | O26: 1 | P26: 1 | Q26: 1 | R26: 0 | S26: 0 | T26: 0 | U26: 1 | V26: 0 | W26: 0 | X26: 0 | Y26: 0 | Z26: 1 | AA26: 0 | AB26: 1
B27: Odchádzajúce - MMS v rámci siete | C27: 2 | D27: 2 | E27: 2 | F27: 2 | G27: 2 | H27: 2 | I27: 1 | J27: 0 | K27: 0 | L27: 2 | M27: 2 | N27: 2 | O27: 2 | P27: 2 | Q27: 2 | R27: 0 | S27: 0 | T27: 0 | U27: 0 | V27: 1 | W27: 1 | X27: 1 | Y27: 1 | Z27: 0 | AA27: 0 | AB27: 1
B28: Odchádzajúce - MMS do sietí iných mobilných operátorov | C28: 1 | D28: 1 | E28: 1 | F28: 1 | G28: 1 | H28: 1 | I28: 1 | J28: 0 | K28: 0 | L28: 1 | M28: 1 | N28: 1 | O28: 1 | P28: 1 | Q28: 1 | R28: 0 | S28: 0 | T28: 0 | U28: 0 | V28: 1 | W28: 1 | X28: 1 | Y28: 1 | Z28: 1 | AA28: 0 | AB28: 1
B29: Odchádzajúce - MMS do zahraničia | C29: 1 | D29: 1 | E29: 1 | F29: 1 | G29: 1 | H29: 1 | I29: 1 | J29: 0 | K29: 0 | L29: 1 | M29: 1 | N29: 1 | O29: 1 | P29: 1 | Q29: 1 | R29: 0 | S29: 0 | T29: 0 | U29: 0 | V29: 1 | W29: 1 | X29: 1 | Y29: 1 | Z29: 1 | AA29: 0 | AB29: 1
B30: Prichádzajúce - MMS z iných sietí mobilných operátorov | C30: 1 | D30: 1 | E30: 1 | F30: 1 | G30: 1 | H30: 1 | I30: 1 | J30: 0 | K30: 0 | L30: 1 | M30: 1 | N30: 1 | O30: 1 | P30: 1 | Q30: 1 | R30: 0 | S30: 0 | T30: 0 | U30: 0 | V30: 1 | W30: 0 | X30: 1 | Y30: 1 | Z30: 1 | AA30: 0 | AB30: 1
B31: Prichádzajúce - MMS zo zahraničia | C31: 1 | D31: 1 | E31: 1 | F31: 1 | G31: 1 | H31: 1 | I31: 1 | J31: 0 | K31: 0 | L31: 1 | M31: 1 | N31: 1 | O31: 1 | P31: 1 | Q31: 1 | R31: 0 | S31: 0 | T31: 0 | U31: 0 | V31: 1 | W31: 0 | X31: 1 | Y31: 1 | Z31: 1 | AA31: 0 | AB31: 1
B32: Mobilné dáta | C32: 1 | D32: 1 | E32: 1 | F32: 1 | G32: 1 | H32: 1 | I32: 1 | J32: 0 | K32: 0 | L32: 1 | M32: 1 | N32: 1 | O32: 1 | P32: 1 | Q32: 1 | R32: 0 | S32: 0 | T32: 0 | U32: 0 | V32: 0 | W32: 1 | X32: 1 | Y32: 1 | Z32: 0 | AA32: 0 | AB32: 1

Sheet 2. Dopyt
A1: 2. Dopyt
A3: Popis
A4: Poskytuje dopyt po službách (počet užívateľov a objem poskytovaných služieb)
B7: Rozdelenie hlasovej prevádzky mezi GSM, UMTS a LTE | C7: Jednotka | E7: Rozloženie prevádzky v danom roku
B8: Prevádzka v GSM rádiovej sieti | C8: %
B9: Prevádzka v UMTS rádiovej sieti | C9: %
B10: Prevádzka LTE rádiovej siete | C10: %
A12: 2.3 Objemy SMS a MMS
B15: Rozdelenie SMS & MMS prevádzky medzi GSM a 3G | C15: Jednotka | E15: Rozloženie prevádzky v danom roku
B16: Prevádzka v GSM rádiovej sieti | C16: %
B17: Prevádzka v UMTS rádiovej sieti | C17: %
B18: Prevádzka LTE rádiovej siete | C18: %
A20: 2.4 Objemy mobilných dát
B22: Rozdelenie prevádzky mobilných dát mezi GSM a 3G | C22: Jednotka | E22: Rozloženie prevádzky v danom roku
B23: Prevádzka v GSM rádiovej sieti | C23: %
B24: Prevádzka v 3G rádiovej sieti | C24: %
B25: LTE | C25: %
A27: 2.5 Štatistiky hovorov
B30: Typ služby | C30: % úspešných SMS a MMS
B31: Jednotka | C31: %
B32: =#REF! -> 
B33: =#REF! -> 
B34: =#REF! -> 
B35: =#REF! -> 
B36: =#REF! -> 
B37: =#REF! -> 
B38: =#REF! -> 
B39: Odchádzajúce- MMS do zahraničia
B40: Prichádzajúce - MMS z iných sietí mobilných operátorov
B41: Prichádzajúce - MMS zo zahraničí

Sheet 0. Hlavné vstupy
A1: 0. Hlavné vstupy
A3: Popis
A4: Výpočty efektívnych vstupov do modelu
A6: 0.1 Dopyt
E7: Operátor 1
B8: Typ zákazníka | C8: Jednotka | E8: Rok 0 Aktuál | F8: Rok 1 Predpoklad | G8: Rok 2 Predpoklad | H8: Rok 3 Predpoklad
B9: Užívatelia s predplatenými službami | C9: #
B10: Faktúrovaní užívatelia | C10: #
B11: Užívatelia roamingových služieb v sieti | C11: #
B12: Celkový počet mobilných užívateľov | C12: # | E12: =SUM(E9:E11) -> 0 | F12: =SUM(F9:F11) -> 0 | G12: =SUM(G9:G11) -> 0 | H12: =SUM(H9:H11) -> 0
B13: Užívatelia hlasových schránok | C13: #
B14: Mobilní datoví užívatelia | C14: #
F15: =F12/E12-1 ->  | G15: =G12/F12-1 ->  | H15: =H12/G12-1 -> 
B16: Služby mobilných komunikácií | C16: Jednotka | E16: Rok 0 Aktuál | F16: Rok 1 Predpoklad | G16: Rok 2 Predpoklad | H16: Rok 3 Predpoklad
B17: Odchádzajúce - hovory v sieti (on-net) | C17: Minúta
B18: Odchádzajúce - hovory do sietí iných mobilných operátorov | C18: Minúta
B19: Odchádzajúce - hovory do pevnej siete | C19: Minúta
B20: Odchádzajúce- hovory do zahraničia | C20: Minúta
B21: Odchádzajúce - hovory na tiesňové čísla | C21: Minúta
B22: Odchádzajúce - hovory do hlasovej schránky | C22: Minúta
B23: Odchádzajúce - hovory na bezplatné čísla | C23: Minúta
B24: Odchádzajúce - hovory na čísla Premium | C24: Minúta
B25: Odchádzajúce - prichádzajúci roaming | C25: Minúta
B26: Prichádzajúce - hovory od iných mobilných operátorov | C26: Minúta
B27: Prichádzajúce - hovory z pevnej siete | C27: Minúta
B28: Prichádzajúce - hovory zo zahraničia | C28: Minúta
B29: Prichádzajúce - prichádzajúci roaming | C29: Minúta
B30: Celková hlasová prevádzka | C30: Minúta | E30: =SUM(E17:E29) -> 0 | F30: =SUM(F17:F29) -> 0 | G30: =SUM(G17:G29) -> 0 | H30: =SUM(H17:H29) -> 0
F31: =F30/E30-1 ->  | G31: =G30/F30-1 ->  | H31: =H30/G30-1 -> 
B32: Odchádzajúce - SMS do siete | C32: # SMS správ
B33: Odchádzajúce - SMS iných sietí | C33: # SMS správ
B34: Odchádzajúce - SMS do zahraničia | C34: # SMS správ
B35: Prichádzajúce - SMS od iných mobilných operátorov | C35: # SMS správ
B36: Prichádzajúce - SMS zo zahraničia | C36: # SMS správ
B37: Celkový počet SMS | C37: # SMS správ | E37: =SUM(E32:E36) -> 0 | F37: =SUM(F32:F36) -> 0 | G37: =SUM(G32:G36) -> 0 | H37: =SUM(H32:H36) -> 0
B39: Odchádzajúce - MMS v rámci siete | C39: # MMS správ
B40: Odchádzajúce - MMS do sietí iných mobilných operátorov | C40: # MMS správ
B41: Odchádzajúce - MMS do zahraničia | C41: # MMS správ
B42: Prichádzajúce - MMS z iných sietí mobilných operátorov | C42: # MMS správ
B43: Prichádzajúce - MMS zo zahraničia | C43: # MMS správ
B44: Celkový počet MMS | C44: # MMS správ | E44: =SUM(E39:E43) -> 0 | F44: =SUM(F39:F43) -> 0 | G44: =SUM(G39:G43) -> 0 | H44: =SUM(H39:H43) -> 0
B46: Mobilný dátový prenos | C46: Mb
F47: =F46/E46-1 ->  | G47: =G46/F46-1 ->  | H47: =H46/G46-1 -> 
A48: 0.2 Štatistiky hovorov
B50: Typ služby | E50: Priemerná doba hovorov | F50: Priemerná čakacia doba do naviazania hovoru | G50: % drop rate
B51: Jednotka | E51: Minúta / hovor | F51: Minúta / hovor | G51: %
B52: Odchádzajúce - hovory v sieti (on-net)
B53: Odchádzajúce - hovory do sietí iných mobilných operátorov
B54: Odchádzajúce - hovory do pevnej siete
B55: Odchádzajúce- hovory do zahraničia
B56: Odchádzajúce - hovory na tiesňové čísla
B57: Odchádzajúce - hovory do hlasovej schránky
B58: Odchádzajúce - hovory na bezplatné čísla
B59: Odchádzajúce - hovory na čísla Premium
B60: Odchádzajúce - prichádzajúci roaming
B61: Prichádzajúce - hovory od iných mobilných operátorov
B62: Prichádzajúce - hovory z pevnej siete
B63: Prichádzajúce - hovory zo zahraničia
B64: Prichádzajúce - prichádzajúci roaming
A66: 0.3 Hlavná prevádzková hodina (Busy hour)
B68: % ročnej prevádzky v Erlang v Busy Hour | C68: % | G68: %ročnej prevádzky v dátovej špičke - Busy Hour | J68: %
A70: 0.4 Základné technické kritériá
B72: Variabilná zložka | C72: Jednotka | E72: 2G | F72: 3G | G72: 4G
B73: Kvalita služby (Radio path Grade of Service (GoS): Blocking Probability) | C73: % | I73: Region | J73: Pomer využívania LTE 800 MHz | K73: Pomer využivania LTE 1800 MHz | L73: Pomer využívania LTE 2100 MHz | M73: Pomer využívania LTE 2600 MHz
B74: Network blocking probability | C74: % | I74: Geotyp Aglomerácie | N74: Súčet 100 %
B75: Capacity planning max load factor - radio network | C75: % | I75: Geotyp Mestá | N75: Súčet 100 %
B76: Capacity planning max load factor - switching | C76: % | I76: Geotyp Vidiek | N76: Súčet 100 %
B77: Capacity planning max load factor - transmission access | C77: %
B78: Capacity planning max load factor - transmission core | C78: %
B79: Capacity planning max load factor - IP backbone
B80: Conversion of voice minutes to Erlang traffic / to MBs in LTE | C80: #
B81: Conversion of voice minutes to MBs in LTE (transport) | C81: MB
A82: 0.5 Spektrum
B84: Variabilná zložka | C84: Jednotka | E84: GSM 900 | F84: GSM 1800 | G84: UMTS | H84: LTE
B85: Spektrum | C85: Khz
B86: Opakovací faktor - Re-use factor per cell (frequency cannot be used in adjacent cells) | C86: #
B87: TRX / Carrier bandwidth | C87: Khz | E87: 200 | F87: 200 | G87: 5000
B88: Spektrálna kapacita - Spectral capacity of a sector (N. of TRX per sector) | C88: TRX/sektor | E88: =ROUND(E85/E86/E87,0) ->  | F88: =ROUND(F85/F86/F87,0) -> 
B89: Fyzická kapacita - Physical capacity of a sector (N. of TRX per sector) | C89: TRX/sektor
A91: 0.6 Pokrytie
B93: Región | C93: Jednotka | E93: Celkové pokrytie - GSM 900 (% celkovej rozlohy geotypu) | F93: Celkové pokrytie - GSM 1800 (% celkovej rozlohy geotypu) | G93: Celkové pokrytie - UMTS (% celkovej rozlohy geotypu) | H93: Celkové pokrytí - LTE (% celkové rozlohy) | I93: Vážený priemer LTE polomeru bunky | J93: GSM 900 priemerný polomer bunky na pokrytie | K93: GSM 1800 priemerný polomer bunky na pokrytie | L93: UMTS priemerný polomer bunky na pokrytie | M93: LTE 800 priemerný polomer bunky | N93: LTE 1800 priemerný polomer bunky | O93: LTE 2100 priemerný polomer bunky | P93: LTE 2600 priemerný polomer bunky
B94: Geotyp Aglomerácie | C94: % | I94: =SUMPRODUCT(J74:M74,M94:P94) -> 0
B95: Geotyp Mestá | C95: % | I95: =SUMPRODUCT(J75:M75,M95:P95) -> 0
B96: Geotyp Vidiek | C96: % | I96: 0
B97: Celkom územie | C97: %
A99: 0.7 Rozloženie prevádzky
B101: Región | C101: Jednotka | E101: % prevádzky geotypu na celkovej 2G prevádzke krajiny | F101: % prevádzky geotypu na celkovej 3G prevádzke krajiny | G101: % prevádzky geotypu na celkovej 4G prevádzke krajiny
B102: Geotyp Aglomerácie | C102: %
B103: Geotyp Mestá | C103: %
B104: Geotyp Vidiek | C104: %
B105: Celkom územie | C105: %
A107: 0.8 Štatistiky lokácií
B109: Počet striech | C109: #
B110: Počet samostatných pylónov | C110: #
B111: Pomer striech | C111: % | E111: =E109/(SUM(E109:E110)) -> 
B112: Pomer samostatných pylónov | C112: % | E112: =E110/(SUM(E109:E110)) -> 
B114: Lokácie napojené na elektrickoú sieť | C114: %
B122: Región | C122: Jednotka | E122: GSM 900 | F122: GSM 1800 | G122: Dual
B123: Geotyp Aglomerácie | C123: %
B124: Geotyp Mestá | C124: %
B125: Geotyp Vidiek | C125: %
B126: Celkom územie | C126: %
A128: 0.9 Max switching capacity
B130: BSC
B131: Max # TRX
B132: RNC
B133: Max data rate per RNC
B134: MSS / MME
B135: Max # of subscribers
B136: Max # of SCC
B137: Max. # of BHE
B138: Max. # of Mbps (MME)
B139: Max. # of BH call attempts
B140: MGW / SGW, PGW
B141: Max. # of BH call attempts
B142: Max. # of BHE
B143: Max. # of Mbps (SGW, PGW)
A145: 0.10 Prenos
E146: GSM UMTS | H146: LTE
B147: Región | E147: Zdieľané BSC/RNC - MGW % (mikrovlnné spojenia) | F147: Priemerný počet mikrovlnných skokov pre prístup | G147: Priemerná vzdialenosť káblu pre prístup | H147: Priemerná vzdialenosť káblov medzi RU a DU
B148: Aglomerácie
B149: Mestá
B150: Vidiek
B151: Celkom územie
A153: 0.11 Súčasné jednotkové ceny
B155: Variabilné spektrálne náklady | E155: EUR
B156: Celkové výnosy pre účely výpočtu administratívneho poplatku
B157: Z toho: Výnosy operátora z poskytovania služby terminácie
E159: Rok 0
B160: Switching & Access | E160: Základná jednotková cena | F160: Cenový trend | G160: Životnosť aktíva | H160: Doba obstarenia (priemerná doba od obstarania do zaradenia do užívania)
B161: Jednotka | E161: EUR | F161: % | G161: Počet rokov | H161: # mesiacov
B162: Radio Access Sites - strecha
B163: Radio Access Sites - samostatný pylón
B164: BTS Cabinet
B165: TRX 2G
B166: BSC
B167: NodeB Cabinet
B168: NodeB Carrier
B169: NodeB Channel Kit
B170: NodeB HSPA Upgrade
B171: eNode B coverage
B172: eNode B capacity
B173: eNode B capacity 5 MHz channel sector
B174: Digital unit
B175: Propojení RU - DU - Fibre
B176: Propojení RU - DU Add Drop Multiplexer - STM1
B177: Propojení RU - DU Add Drop Multiplexer - STM4
B178: Propojení RU - DU Add Drop Multiplexer - STM16
B179: Propojení RU - DU Add Drop Multiplexer - STM64
B180: Propojení RU - DU Add Drop Multiplexer - STM256
B181: RNC
B182: HLR / HSS
B183: MSS
B184: SGW, PGW
B185: MME
B186: Mobile voicemail platform
B187: SMS Centrum
B188: MMS Centrum
B189: Intelligent Network
B190: SGSN Platform
B191: GGSN Platform
B192: BTS - BSC
B193: Node B - RNC
B194: eNode B - MGW
B195: BSC - MGW
B196: RNC - MGW
B197: MGW - MGW
B198: Interconnection
B199: IMS
B200: PCRF
B202: Prenos
B203: Jednotka
B204: Optical Fibre
B205: Fibre, average cost including duct, trench, etc - URBAN
B206: Fibre, average cost including duct, trench, etc - RURAL
B207: NGN transmission equipment
B208: IP Switch
B209: IP Router
B210: SDH equipment
B211: Add Drop Multiplexer - STM1
B212: Add Drop Multiplexer - STM4
B213: Add Drop Multiplexer - STM16
B214: Add Drop Multiplexer - STM64
B215: Add Drop Multiplexer - STM256
B216: Microwave
B217: Link 2 Mbit/s
B218: Link 8 Mbit/s
B219: Link 32 Mbit/s
B220: Link 128 Mbit/s
B221: Link STM-1
B222: Satellite
B223: Link 2 Mbit/s
B224: Link 8 Mbit/s
B225: Link 32 Mbit/s
B226: Link 128 Mbit/s
B227: …
A229: 0.12 Mark-up pre veľkoobchodné služby a sieťový OPEX
B231: Mark-up pre veľkoobchodné služby | C231: Jednotka | E231: Hodnota
B232: Mark-up Opex prenosové média (access, backhaul, backbone) | C232: %
B233: Mark-up Opex sieťové prvky Core | C233: %
... 166 more rows
